bitfinex-derivatives/quotes_ETHF0:USTF0_20251211
["timestamp","ask_amount","ask_price","bid_price","bid_amount"]
[1765488664295,2.4109,3267.0,3266.4,3.2078]
[1765488665002,3.2078,3266.8,3266.1,0.15307]
[1765488665396,3.2078,3266.8,3266.2,0.15306]
[1765488665698,3.2078,3266.3,3265.6,0.15309]
[1765488665896,3.2078,3265.7,3264.7,0.15313]
[1765488666103,3.2078,3265.1,3263.9,3.36479579]
[1765488666396,3.2078,3264.7,3263.9,0.15699579]
[1765488666600,3.2078,3264.7,3264.0,0.15317]
[1765488666908,9.2078,3264.7,3263.9,0.00382579]
[1765488667200,3.2078,3264.0,3263.9,0.00382579]
[1765488668699,3.2078,3264.0,3262.6,3.2078]
[1765488668902,3.2078,3263.8,3262.6,3.2078]
[1765488669294,3.2078,3263.4,3263.3,0.1532]
[1765488669497,6.287,3264.6,3263.7,0.15318]
[1765488669498,3.2078,3263.8,3263.7,0.15318]
[1765488669700,3.2078,3264.4,3264.0,0.15317]
[1765488669997,6.287,3264.6,3264.2,0.15316]
[1765488670203,3.2078,3264.4,3264.2,0.15316]
[1765488670498,3.2078,3265.3,3264.6,0.15314]
[1765488670704,3.2078,3264.9,3264.5,0.15314]
[1765488671392,3.2078,3264.9,3263.4,2.4711]
[1765488671598,0.15308,3265.9,3263.9,0.15317]
[1765488671599,3.2078,3264.2,3263.9,0.15317]
[1765488671798,3.2078,3264.2,3264.0,0.15317]
[1765488672912,3.2078,3264.2,3263.3,0.1532]
[1765488673202,3.2078,3264.7,3263.7,0.04066873]
[1765488673406,3.2078,3264.3,3264.2,0.15316]
[1765488674508,3.2078,3264.8,3264.6,0.15314]
[1765488675504,3.2078,3264.8,3264.7,0.19380873]
[1765488675711,3.2078,3265.3,3265.2,2.40591]
[1765488675905,3.2078,3265.3,3265.2,0.15311]
[1765488676404,3.2078,3265.3,3265.2,0.19377873]
[1765488677923,3.2078,3265.3,3265.2,2.44657873]
[1765488678107,3.2078,3266.2,3266.1,0.15307]
[1765488678501,3.2078,3266.2,3266.1,0.19373873]
[1765488678811,3.2078,3267.1,3267.0,0.15303]
[1765488679012,3.2078,3267.1,3267.0,2.59443]
[1765488679505,3.2078,3267.1,3267.0,2.63509873]
[1765488679711,3.2078,3267.5,3267.4,0.15301]
[1765488680511,3.2078,3267.5,3267.4,0.19367873]
[1765488680905,3.2078,3267.5,3267.4,0.04066873]
[1765488682603,0.15292,3269.3,3267.4,0.04066873]
[1765488682604,3.21752461,3270.1,3268.3,0.15297]
[1765488682803,3.2078,3268.6,3268.3,0.15297]
[1765488683007,3.2078,3268.6,3267.4,0.04066873]
[1765488683008,3.2078,3268.6,3267.6,0.153]
[1765488683205,2.2792,3267.9,3267.6,0.153]
[1765488683609,2.2792,3267.9,3267.7,0.04066873]
[1765488683813,3.2078,3268.4,3267.9,0.15298]
[1765488684002,2.2792,3267.9,3267.7,0.04066873]
[1765488684203,3.2078,3268.0,3267.7,0.04066873]
[1765488684402,3.2078,3268.5,3268.0,0.15298]
[1765488684612,3.2078,3268.5,3268.2,0.04066873]
[1765488685314,3.2078,3268.5,3268.3,0.15297]
[1765488685714,3.2078,3268.5,3268.4,0.04066873]
[1765488685918,9.1078,3268.5,3267.5,0.153]
[1765488686213,3.2078,3268.0,3267.9,0.15298]
[1765488686426,3.2078,3268.4,3267.9,0.15298]
[1765488686808,3.2078,3268.0,3267.9,0.15298]
[1765488687012,5.0787,3268.0,3267.9,0.15298]
[1765488687715,3.2078,3268.0,3267.9,0.15298]
[1765488687915,5.487,3268.0,3267.9,0.15298]
[1765488688313,3.2078,3268.0,3267.9,0.15298]
[1765488688817,5.487,3268.0,3267.2,3.2078]
[1765488689017,3.2078,3267.5,3267.2,0.15302]
[1765488691719,3.2078,3267.5,3267.3,0.15301]
[1765488692722,3.2078,3267.5,3266.3,3.2078]
[1765488693220,3.2078,3267.5,3267.4,0.15301]
[1765488695617,3.2078,3268.2,3267.7,0.153]
[1765488695920,2.2792,3268.8,3267.7,0.153]
[1765488695921,3.2078,3267.8,3267.7,0.153]
[1765488696722,3.21019223,3267.8,3267.7,0.00314771]
[1765488696919,3.21019223,3267.8,3267.7,4.771e-05]
[1765488697723,9.21019223,3267.8,3266.8,0.15304]
[1765488697923,9.21019223,3267.8,3266.3,3.2078]
[1765488697924,2.2792,3266.4,3266.3,0.15306]
[1765488698316,1.9179,3267.2,3266.6,0.15305]
[1765488698317,3.2078,3267.0,3266.6,0.15305]
[1765488698620,1.9179,3267.2,3267.0,0.15303]
[1765488698824,3.2078,3267.4,3267.2,0.15302]
[1765488699125,3.2078,3267.4,3267.3,0.15301]
[1765488699126,3.21239031,3267.4,3267.3,0.15301]
[1765488701920,3.21239031,3267.4,3266.6,0.15595172]
[1765488702121,3.2078,3266.8,3266.7,0.15304]
[1765488703623,0.00459031,3267.4,3267.3,0.15301]
[1765488704825,0.00459031,3267.4,3267.3,6.15301]
[1765488705026,14.2238,3268.5,3267.7,0.153]
[1765488706131,0.00459031,3268.1,3267.7,0.153]
[1765488707524,3.2078,3268.9,3267.6,5.3946]
[1765488707719,3.2078,3268.9,3268.7,0.15294]
[1765488708727,7.6973,3268.8,3268.7,0.15294]
[1765488710629,7.3336,3268.1,3268.0,0.15298]
[1765488710924,2.2354,3268.3,3267.3,3.2078]
[1765488710925,7.3336,3267.4,3267.3,0.15301]
[1765488711227,2.2354,3267.6,3266.6,0.15596172]
[1765488711525,5.4432,3266.9,3265.8,3.2078]
[1765488711720,5.4432,3266.9,3266.2,0.15306]
[1765488711922,5.4432,3266.9,3266.5,0.15305]
[1765488712122,0.00459031,3267.4,3266.9,0.15303]
[1765488712327,3.2078,3267.0,3266.9,0.15303]
[1765488712530,3.2078,3267.0,3266.9,0.15640188]
[1765488713329,3.2078,3267.0,3266.9,0.00337188]
[1765488713528,2.2354,3266.9,3266.6,0.00459031]
[1765488714226,2.2461828,3266.8,3265.5,3.3609]
[1765488714433,3.2078,3265.7,3265.5,0.00332637]
[1765488714626,3.21143854,3265.7,3265.5,0.00332637]
[1765488714932,3.21143854,3265.7,3265.5,0.15642637]
[1765488715925,3.21143854,3265.7,3265.5,0.00332637]
[1765488716932,2.2354,3265.5,3264.4,3.36095]
[1765488717232,3.2078,3265.0,3264.4,3.36095]
[1765488717732,3.2078,3265.0,3264.5,0.15314]
[1765488717927,3.2078,3265.0,3264.7,0.15314]
[1765488718833,2.0554,3264.8,3264.4,0.00266449]
[1765488719132,3.2078,3264.6,3264.4,0.00266449]
[1765488720430,9.2078,3264.6,3263.5,3.2078]
[1765488720628,5.2632,3264.1,3263.5,3.2078]
[1765488720827,5.2632,3264.1,3263.5,0.15319]
[1765488721026,3.2078,3264.7,3263.9,3.2078]
[1765488721230,3.2078,3264.3,3263.5,3.2078]
[1765488721431,3.2078,3263.9,3263.5,0.00356132]
[1765488723531,3.2078,3263.9,3262.4,6.11313069]
[1765488723734,3.2078,3263.1,3262.4,6.11313069]
[1765488723932,0.00459031,3263.1,3262.7,3.2078]
[1765488724135,3.21239031,3263.1,3262.3,3.2078]
[1765488724837,3.2151994,3263.1,3262.8,0.15322]
[1765488725039,0.0073994,3263.1,3263.0,0.15322]
[1765488725230,3.2078,3264.0,3263.7,0.15318]
[1765488725537,3.2078,3264.0,3263.8,0.15318]
[1765488726334,3.21172948,3264.0,3263.8,0.15318]
[1765488726933,3.21172948,3264.0,3263.6,0.00459763]
[1765488727936,3.21172948,3264.0,3263.7,0.15318]
[1765488728445,3.21172948,3264.0,3263.6,0.00459763]
[1765488729142,3.21172948,3264.0,3262.4,3.2078]
[1765488729143,2.0554,3263.4,3262.4,3.2078]
[1765488729348,3.2078,3262.6,3262.3,0.00274834]
[1765488729646,3.2078,3262.8,3262.7,2.26643]
[1765488730834,3.2078,3263.2,3263.1,0.15321]
[1765488731246,3.2078,3263.8,3263.1,6.0]
[1765488731545,3.2078,3263.8,3263.0,3.2078]
[1765488731749,0.00392948,3264.0,3263.8,0.15318]
[1765488731941,0.00392948,3264.0,3263.9,0.15317]
[1765488732342,0.00392948,3264.0,3263.2,0.15321]
[1765488732644,3.2078,3263.7,3263.2,0.15321]
[1765488733039,3.2078,3263.7,3263.5,0.15319]
[1765488733440,3.2078,3263.7,3263.6,0.15319]
[1765488734150,0.00459763,3264.2,3263.6,6.0]
[1765488734351,3.2078,3265.0,3264.9,0.15313]
[1765488735352,3.21002778,3265.0,3264.9,0.15547397]
[1765488735752,0.00222778,3265.0,3264.9,0.15547397]
[1765488736151,3.21002778,3265.0,3264.9,0.15547397]
[1765488737448,3.21002778,3265.0,3264.9,0.00234397]
[1765488738364,3.21002778,3265.0,3264.9,0.15547397]
[1765488738666,3.21002778,3265.0,3264.6,0.00459763]
[1765488738667,2.2443,3264.8,3264.6,0.00459763]
[1765488738866,3.21002778,3265.0,3264.6,0.00459763]
[1765488739168,3.21002778,3265.0,3264.9,0.15313]
[1765488739668,3.07289101,3265.4,3265.1,0.15312]
[1765488739861,3.07289101,3265.4,3264.9,0.00343391]
[1765488739862,5.0512,3266.2,3265.6,0.15309]
[1765488740058,3.2078,3266.2,3266.1,0.15307]
[1765488740663,5.53296153,3266.2,3266.1,0.15307]
[1765488740965,3.21156153,3266.2,3266.1,0.15307]
[1765488741759,3.21156153,3266.2,3263.4,0.1532]
[1765488741760,0.15312,3265.0,3263.4,0.1532]
[1765488741967,3.2078,3263.5,3263.4,3.361]
[1765488742663,3.2109538,3263.5,3263.4,3.36324994]
[1765488745266,0.00459763,3263.8,3263.6,0.15319]
[1765488745462,3.2078,3263.7,3263.6,0.15319]
[1765488745866,3.2078,3263.7,3263.4,0.00224994]
[1765488746267,3.2078,3263.7,3263.1,0.00459763]
[1765488746268,0.8504076,3263.6,3263.1,0.00459763]
[1765488746569,3.2078,3263.2,3263.1,0.00459763]
[1765488747168,3.21026611,3263.2,3263.1,0.00829244]
[1765488748472,4.06070743,3263.2,3263.1,0.00829244]
[1765488749172,3.21026611,3263.2,3263.1,0.00829244]
[1765488751476,3.21026611,3263.2,3263.1,0.05033688]
[1765488751670,3.21026611,3263.2,3262.3,0.15325]
[1765488751969,3.2078,3262.4,3262.3,0.15325]
[1765488752274,3.2078,3262.4,3260.8,5.374]
[1765488752472,3.2078,3261.5,3261.3,2.1662]
[1765488752676,3.2078,3261.5,3261.3,2.16865236]
[1765488752978,3.2078,3261.5,3261.4,0.15329]
[1765488753277,0.00459763,3261.7,3261.6,0.15328]
[1765488753774,0.00459763,3261.7,3261.6,6.15328]
[1765488755382,3.2078,3262.3,3262.2,0.15325]
[1765488755569,3.2078,3262.9,3262.7,0.15323]
[1765488756473,3.2078,3262.9,3262.8,0.15323]
[1765488756972,3.2078,3262.9,3262.5,0.00459763]
[1765488757279,3.2078,3262.9,3262.8,0.15321]
[1765488758780,0.00459763,3263.1,3263.0,0.1532]
[1765488760183,0.00459763,3263.1,3263.0,6.1532]
[1765488761077,0.00459763,3263.1,3263.0,0.1532]
[1765488761278,0.00459763,3263.1,3263.0,6.1532]
[1765488761577,8.321,3265.2,3263.0,6.1532]
[1765488761578,2.88306,3264.4,3264.3,0.15314]
[1765488761778,3.2078,3265.0,3264.3,3.2078]
[1765488761983,3.2078,3265.5,3265.4,0.15309]
[1765488762188,3.2078,3265.9,3265.3,3.2078]
[1765488762374,3.21239763,3265.9,3265.3,3.2163462]
[1765488762685,3.21534518,3265.9,3265.3,3.2163462]
[1765488762888,0.00754518,3265.9,3265.8,3.36087]
[1765488763080,0.00754518,3265.9,3265.8,0.15307]
[1765488764382,3.2078,3266.8,3266.7,0.15302]
[1765488764882,3.2078,3266.8,3265.7,3.2078]
[1765488765082,3.2078,3267.2,3266.6,0.15303]
[1765488765278,3.21503815,3267.2,3266.6,0.15303]
[1765488765485,3.21503815,3267.2,3266.8,0.15302]
[1765488765788,3.21503815,3267.2,3266.5,3.2078]
[1765488765789,3.21503815,3267.2,3267.0,0.15301]
[1765488766280,3.21503815,3267.2,3266.2,0.15305]
[1765488766481,3.2078,3266.8,3266.3,0.15304]
[1765488766681,3.2078,3266.8,3266.5,0.15303]
[1765488766988,0.00723815,3267.2,3266.5,0.15303]
[1765488767888,3.2078,3266.8,3266.5,0.15303]
[1765488768285,0.00723815,3267.2,3266.7,0.15303]
[1765488768584,0.00723815,3267.2,3266.6,3.2078]
[1765488769394,0.00723815,3267.2,3267.0,3.2078]
[1765488770493,0.00723815,3267.2,3267.1,0.15301]
[1765488771785,1.63673548,3270.0,3267.1,0.15301]
[1765488771786,0.1529,3269.5,3267.6,2.62848]
[1765488771990,3.2078,3268.6,3267.6,5.6833]
[1765488772191,3.2078,3268.6,3267.8,0.15297]
[1765488772397,3.2078,3268.6,3267.6,5.6833]
[1765488772795,0.00459038,3268.4,3268.3,2.4755]
[1765488773097,0.00459038,3268.4,3268.2,0.15295]
[1765488773996,0.00459038,3268.4,3267.8,0.00459038]
[1765488774993,0.00459038,3268.4,3268.1,0.15296]
[1765488775396,2.5744,3268.3,3267.8,0.00459038]
[1765488776099,0.00459038,3268.4,3268.3,2.4755]
[1765488776292,2.5744,3270.4,3268.3,2.4755]
[1765488776293,3.2078,3269.5,3269.1,0.15291]
[1765488776796,2.5673,3269.7,3269.1,0.15291]
[1765488776997,3.2078,3269.3,3269.1,0.15291]
[1765488777197,3.2078,3269.7,3269.1,0.15291]
[1765488777398,0.00252862,3269.3,3269.1,0.15291]
[1765488777694,3.21032862,3269.3,3268.5,3.2078]
[1765488777899,3.21032862,3269.3,3268.6,0.15294]
[1765488778091,3.21032862,3269.3,3268.5,3.2078]
[1765488778703,3.2078,3269.2,3268.5,3.2078]
[1765488778893,3.2078,3269.2,3268.8,0.15293]
[1765488779303,3.2078,3269.2,3268.9,0.15292]
[1765488779601,0.00252862,3269.3,3269.1,0.15291]
[1765488779895,0.00252862,3269.3,3269.2,0.15291]
[1765488781200,6.00252862,3269.3,3269.2,0.15291]
[1765488781401,8.61907365,3269.3,3268.5,3.2078]
[1765488781602,5.6457,3269.0,3268.5,3.2078]
[1765488781898,3.2078,3269.0,3268.5,3.36074]
[1765488782205,3.2078,3268.6,3268.0,0.15296]
[1765488782498,3.2078,3268.6,3267.9,3.2078]
[1765488782700,5.82434503,3268.0,3267.8,0.00459038]
[1765488783104,11.82434503,3268.0,3267.8,0.00459038]
[1765488783298,2.5269,3267.6,3266.6,0.15303]
[1765488783503,3.2078,3267.1,3266.6,0.15303]
[1765488784407,3.2078,3267.1,3266.6,0.15598857]
[1765488785500,3.2078,3267.1,3266.6,0.00295857]
[1765488785701,0.00459038,3267.2,3267.1,0.15301]
[1765488786095,0.00459038,3267.2,3266.6,0.00295857]
[1765488786096,2.57899038,3267.2,3266.6,0.00295857]
[1765488786295,0.00459038,3267.2,3267.1,0.15301]
[1765488786495,0.00459038,3267.2,3267.1,3.36081]
[1765488786694,5.7822,3268.3,3267.7,0.15298]
[1765488787100,3.2078,3268.3,3267.5,3.2078]
[1765488787303,3.2078,3268.3,3268.2,0.15296]
[1765488787606,3.2078,3268.3,3267.2,2.4755]
[1765488787802,0.00459038,3268.1,3267.5,3.2078]
[1765488789005,0.00459038,3268.1,3268.0,0.15297]
[1765488789597,0.00459038,3268.1,3267.5,3.2078]
[1765488789797,0.00459038,3268.1,3267.5,3.36079]
[1765488790104,0.00459038,3268.1,3268.0,0.15297]
[1765488791710,2.3655,3267.6,3267.1,3.2078]
[1765488792008,3.2078,3267.9,3266.7,3.2078]
[1765488792203,0.81584257,3267.8,3266.7,3.2078]
[1765488792510,3.2078,3267.5,3267.3,0.153]
[1765488793306,3.2078,3267.5,3266.7,3.2078]
[1765488793513,5.82434503,3267.5,3266.7,3.2078]
[1765488793709,0.81699112,3267.4,3266.9,0.15301]
[1765488793910,5.82434503,3267.5,3266.7,3.2078]
[1765488793911,3.2078,3267.5,3267.0,0.15301]
[1765488795009,3.2078,3267.5,3267.1,0.15301]
[1765488795197,0.81734167,3267.4,3267.1,0.15301]
[1765488795400,3.2078,3267.5,3267.1,0.15301]
[1765488795603,0.8174445,3267.4,3267.3,0.153]
[1765488795798,3.2078,3267.9,3267.8,0.15298]
[1765488796008,0.00459038,3268.1,3267.8,0.15298]
[1765488797512,3.1987327,3268.0,3267.8,0.15298]
[1765488797809,2.3812,3268.0,3267.8,0.15298]
[1765488798210,4.02550832,3267.9,3267.1,0.15301]
[1765488798414,0.81770832,3267.8,3267.1,0.15301]
[1765488798712,0.81770832,3267.7,3267.1,0.15301]
[1765488798907,0.81770832,3267.6,3267.1,0.15301]
[1765488799108,3.2078,3267.9,3267.1,0.15301]
[1765488799311,0.81785034,3267.8,3267.1,0.15301]
[1765488799506,0.81785034,3267.7,3267.2,0.153]
[1765488799706,3.2078,3267.9,3267.2,0.153]
[1765488799909,0.81790214,3267.8,3267.2,0.153]
[1765488800113,0.81790214,3267.7,3267.2,0.153]
[1765488800408,3.2078,3267.9,3267.2,0.153]
[1765488800714,3.2078,3267.9,3267.0,3.2078]
[1765488800715,0.81791912,3267.8,3267.3,0.153]
[1765488801012,0.81791912,3267.7,3267.3,0.153]
[1765488801202,3.2078,3267.9,3267.3,0.153]
[1765488801407,0.81793066,3267.8,3267.3,0.153]
[1765488801606,3.2078,3267.9,3267.3,0.153]
[1765488801607,2.1706,3267.6,3267.3,0.153]
[1765488801808,3.2078,3267.9,3267.3,0.153]
[1765488802013,0.81793673,3267.8,3267.3,0.153]
[1765488802209,0.81793673,3267.7,3267.3,0.153]
[1765488802414,3.02373673,3267.6,3267.3,0.153]
[1765488802712,0.81793673,3267.5,3267.3,0.153]
[1765488802912,2.2058,3267.6,3267.3,0.153]
[1765488803111,0.81791886,3267.5,3267.3,0.153]
[1765488803412,3.2078,3267.9,3267.0,3.2078]
[1765488803614,0.00459038,3268.1,3268.0,0.15297]
[1765488805215,2.5316,3269.6,3268.7,0.15293]
[1765488805216,3.2078,3268.8,3268.7,0.15293]
[1765488805517,3.2078,3269.4,3268.3,5.5903]
[1765488805922,3.2078,3269.4,3268.9,0.15292]
[1765488806113,3.2078,3269.4,3268.9,0.1568291]
[1765488806413,3.21083837,3269.4,3268.9,0.1568291]
[1765488806620,3.21083837,3269.4,3269.1,0.15291]
[1765488806820,0.00303837,3269.4,3269.2,0.15291]
[1765488810427,0.00303837,3269.4,3269.1,3.2078]
[1765488810720,0.00303837,3269.4,3269.2,0.15291]
[1765488812622,7.874,3270.6,3269.1,3.2078]
[1765488812623,2.24823945,3270.6,3269.1,3.2078]
[1765488812820,2.0881,3270.4,3269.6,0.15289]
[1765488813117,2.0881,3270.4,3269.7,0.15288]
[1765488813422,3.2078,3270.3,3269.5,3.2078]
[1765488813626,3.21172174,3270.3,3269.5,3.2078]
[1765488813826,0.00392174,3270.3,3270.2,0.15286]
[1765488814030,2.24823945,3272.1,3270.4,2.3825]
[1765488814322,2.24823945,3272.3,3271.6,3.2078]
[1765488814525,4.57853945,3271.8,3270.9,0.00459038]
[1765488814718,4.57853945,3271.8,3271.2,3.2078]
[1765488814919,2.01500034,3271.8,3271.2,0.00260986]
[1765488815319,5.45603945,3271.6,3271.2,0.00260986]
[1765488815719,11.45603945,3271.6,3271.2,0.00260986]
[1765488816121,5.45603945,3271.6,3271.2,0.00260986]
[1765488817120,5.45603945,3271.6,3270.3,3.2078]
[1765488817121,1.3394,3270.4,3270.3,3.2078]
[1765488817325,3.58763945,3270.4,3269.5,3.2078]
[1765488817529,3.58763945,3270.4,3269.5,3.3607]
[1765488817728,1.3394,3270.4,3269.9,3.2078]
[1765488817925,1.3394,3270.4,3269.9,3.20997794]
[1765488818520,1.3394,3270.4,3269.9,0.00217794]
[1765488818521,3.58763945,3270.4,3269.9,0.00217794]
[1765488818725,3.58763945,3270.4,3269.9,3.20997794]
[1765488819322,0.00459038,3270.5,3270.4,0.15285]
[1765488819525,0.00459038,3270.5,3270.4,2.53535]
[1765488820029,3.2078,3271.6,3270.7,0.15284]
[1765488820233,3.2078,3271.6,3270.8,3.2078]
[1765488820729,3.2078,3271.6,3270.8,3.36064]
[1765488821128,3.2078,3271.6,3270.8,3.2078]
[1765488821329,3.2078,3271.6,3271.0,0.15282]
[1765488821730,3.2078,3271.6,3270.8,3.2078]
[1765488821933,0.00340034,3271.8,3271.5,0.1528]
[1765488822229,0.00340034,3271.8,3271.7,3.2078]
[1765488823226,0.00340034,3271.8,3271.7,3.36059]
[1765488824421,3.2078,3272.8,3272.2,0.15277]
[1765488824730,2.2526,3272.5,3272.2,0.00459038]
[1765488825029,3.2078,3272.4,3271.3,3.2078]
[1765488825226,4.37413945,3271.8,3270.9,0.15283]
[1765488825529,4.37413945,3271.8,3271.1,0.15282]
[1765488825530,0.00298737,3271.8,3271.1,0.15282]
[1765488825922,0.00298737,3271.8,3271.1,0.15741038]
[1765488826328,0.00298737,3271.8,3271.2,0.15282]
[1765488826532,0.00298737,3271.8,3271.4,3.2078]
[1765488828032,0.00298737,3271.8,3271.6,0.1528]
[1765488828331,0.00298737,3271.8,3271.7,0.15279]
[1765488829239,0.00298737,3271.8,3271.4,3.2078]
[1765488829921,2.26488737,3271.8,3271.4,3.2078]
[1765488830127,2.24823945,3271.6,3271.4,3.2078]
[1765488830828,2.24823945,3271.6,3270.9,0.00368007]
[1765488830829,2.2619,3271.1,3270.9,0.00368007]
[1765488831026,5.45603945,3271.0,3270.9,0.00368007]
[1765488831424,11.45603945,3271.0,3270.0,3.36067]
[1765488831623,3.2078,3270.6,3270.0,3.36067]
[1765488831834,2.24823945,3270.5,3270.0,3.21239038]
[1765488832034,2.2619,3270.4,3270.0,3.21239038]
[1765488832431,2.2619,3270.4,3270.0,3.21580041]
[1765488832736,2.24823945,3270.1,3268.7,0.15293]
[1765488833033,3.2078,3269.5,3268.7,0.15293]
[1765488833639,2.24823945,3269.3,3268.8,0.00459038]
[1765488833832,3.21073133,3269.5,3268.8,0.00459038]
[1765488835430,3.2078,3269.1,3268.8,0.00459038]
[1765488836934,0.00293133,3269.5,3268.9,3.2078]
[1765488837536,3.2078,3270.1,3269.6,0.15289]
[1765488837737,3.2078,3270.1,3269.6,2.36649]
[1765488838337,3.2078,3270.1,3269.6,2.2136]
[1765488838539,0.00350679,3270.1,3269.9,3.2078]
[1765488838837,0.00350679,3270.1,3270.0,0.15287]
[1765488839037,3.2078,3271.2,3270.5,0.15285]
[1765488839941,5.45603945,3271.6,3270.9,0.15283]
[1765488840142,3.2078,3271.2,3270.9,0.15283]
[1765488840443,5.4592,3271.2,3270.3,3.2078]
[1765488840646,5.4592,3271.2,3270.3,3.36066]
[1765488840841,5.4592,3271.2,3270.4,0.00459038]
[1765488840842,0.00459038,3271.1,3270.4,0.00459038]
[1765488841342,3.2078,3270.8,3270.4,0.00459038]
[1765488841640,3.2078,3270.8,3268.8,2.2136]
[1765488841641,2.2619,3270.4,3269.7,0.15289]
[1765488841843,3.2078,3270.2,3269.8,0.15288]
[1765488842143,0.00459038,3271.1,3269.9,3.2078]
[1765488842335,0.00459038,3271.1,3270.4,5.4214]
[1765488842537,0.00459038,3271.1,3270.4,5.42599038]
[1765488842744,3.2078,3270.7,3270.4,0.00459038]
[1765488843341,3.21239038,3271.1,3270.5,0.15285]
[1765488844138,3.21239038,3271.1,3270.4,0.00459038]
[1765488844344,2.24823945,3270.5,3270.4,0.00459038]
[1765488844546,2.2192,3270.4,3269.1,0.15291]
[1765488844745,3.2078,3269.8,3269.1,0.15291]
[1765488845151,3.2078,3269.8,3269.3,0.1529]
[1765488845440,3.2078,3269.8,3269.0,3.2078]
[1765488845441,3.2078,3270.6,3269.7,3.2078]
[1765488845642,3.2078,3270.6,3269.6,0.15289]
[1765488846039,2.31902,3271.2,3269.6,0.15289]
[1765488846040,3.2078,3270.2,3269.6,0.15289]
[1765488846241,3.2078,3270.2,3269.7,0.15289]
[1765488846443,3.2078,3270.2,3269.8,0.15288]
[1765488846648,3.2078,3270.2,3269.9,0.15288]
[1765488847542,3.2078,3270.2,3269.2,3.36530038]
[1765488848249,3.2078,3270.2,3270.1,0.15287]
[1765488848449,3.2078,3270.7,3270.5,0.15285]
[1765488849145,3.2078,3271.3,3270.4,5.4214]
[1765488850247,0.0034332,3271.6,3271.0,0.15283]
[1765488850447,0.0034332,3271.6,3271.0,0.15620025]
[1765488850952,0.0034332,3271.6,3271.4,0.15281]
[1765488851144,0.0034332,3271.6,3271.2,3.2078]
[1765488851340,3.2078,3271.4,3271.0,0.00337025]
[1765488854270,4.36843945,3271.2,3271.0,0.00337025]
[1765488854444,3.2078,3271.4,3271.0,0.00337025]
[1765488854957,5.45603945,3271.4,3271.0,0.00337025]
[1765488855746,3.2078,3271.4,3271.0,0.00337025]
[1765488855944,3.2078,3271.4,3271.2,0.15282]
[1765488856551,3.2078,3271.4,3271.3,3.5291]
[1765488856756,3.2078,3271.4,3271.3,6.9386]
[1765488857155,0.00459038,3271.5,3271.4,3.5291]
[1765488857357,3.3683,3271.3,3271.2,0.15282]
[1765488857658,0.00459038,3271.5,3271.2,0.15282]
[1765488859350,0.00459038,3271.5,3271.4,6.8022]
[1765488859553,3.2078,3273.1,3272.6,0.15275]
[1765488859756,2.2619,3273.6,3272.6,3.36055]
[1765488859960,3.2078,3273.1,3272.6,3.36055]
[1765488860357,3.2078,3272.9,3272.6,0.15275]
[1765488860561,3.21148137,3272.9,3272.6,0.15275]
[1765488861156,3.21148137,3272.9,3272.5,3.19518603]
[1765488861357,8.66752082,3272.9,3272.4,0.00458308]
[1765488862156,5.3824,3272.5,3272.4,0.00458308]
[1765488862558,3.2078,3272.5,3272.4,0.00458308]
[1765488862758,8.1746,3272.5,3272.4,0.00458308]
[1765488862958,5.3824,3272.5,3272.4,0.00458308]
[1765488863753,2.1746,3272.5,3272.4,0.00458308]
[1765488863955,6.41928137,3272.9,3272.4,0.00458308]
[1765488864160,3.21148137,3272.9,3272.4,0.00458308]
[1765488865967,6.41928137,3272.9,3272.4,0.00458308]
[1765488866168,3.4097,3272.5,3272.4,0.00458308]
[1765488866370,6.9302,3272.5,3272.4,0.00458308]
[1765488866666,3.4097,3272.5,3272.4,0.00458308]
[1765488867060,3.21148137,3272.9,3272.4,3.21238308]
[1765488867261,3.2078,3272.8,3272.4,3.21238308]
[1765488867564,6.9302,3272.5,3272.4,3.21238308]
[1765488867772,6.9302,3272.5,3272.4,0.00458308]
[1765488869074,3.4097,3272.5,3272.4,0.00458308]
[1765488869286,3.2078,3272.8,3272.4,0.00458308]
[1765488869582,3.4097,3272.5,3272.4,0.00458308]
[1765488869786,6.9302,3272.5,3272.4,0.00458308]
[1765488869982,8.9611,3272.5,3272.4,0.00458308]
[1765488870278,0.00368137,3272.9,3272.4,3.21238308]
[1765488870484,3.21148137,3272.9,3272.4,3.21238308]
[1765488870680,3.21148137,3272.9,3272.4,3.36514308]
[1765488871281,3.21148137,3272.9,3272.4,0.15734308]
[1765488871482,3.21148137,3272.9,3272.4,3.36514308]
[1765488871682,0.00368137,3272.9,3272.8,9.91824]
[1765488872283,0.00368137,3272.9,3272.5,2.0102]
[1765488872284,10.14168137,3272.9,3272.4,0.00458308]
[1765488872486,3.4097,3272.5,3272.4,0.00458308]
[1765488872683,3.21148137,3272.9,3272.4,0.00458308]
[1765488872883,6.9302,3272.0,3269.6,7.17204922]
[1765488873080,6.9302,3272.0,3269.0,2.0102]
[1765488873081,2.60729728,3271.7,3271.1,3.2078]
[1765488873479,2.1746,3271.8,3271.0,0.15619025]
[1765488873679,6.9302,3271.1,3271.0,0.00337025]
[1765488874191,10.138,3271.1,3271.0,0.00337025]
[1765488874685,12.2764,3271.1,3271.0,0.00337025]
[1765488874880,6.9302,3270.8,3270.7,0.00458308]
[1765488875275,6.6175,3270.8,3270.7,0.00458308]
[1765488875481,10.138,3270.8,3270.7,0.00458308]
[1765488875878,0.00458308,3271.4,3270.7,6.56601932]
[1765488876083,0.00458308,3271.4,3271.3,6.5577]
[1765488876283,3.2078,3271.3,3271.2,3.2078]
[1765488876683,3.2078,3271.3,3270.7,0.00831932]
[1765488878087,3.2078,3271.0,3270.7,0.00831932]
[1765488879789,3.2078,3270.8,3270.7,0.00831932]
[1765488880690,3.21238308,3271.4,3270.7,0.00831932]
[1765488880895,3.2078,3271.1,3270.7,3.21611932]
[1765488881092,3.21238308,3271.4,3270.7,3.21611932]
[1765488881296,3.2078,3271.2,3270.7,3.21611932]
[1765488881594,3.2078,3271.0,3270.7,0.00831932]
[1765488882191,3.2078,3271.0,3268.0,3.80796971]
[1765488882192,2.131,3270.4,3268.0,3.80796971]